Cogmind - Beta 13 @@@ ROGUE MODE // 2024.04.06 @ 21:15:26 Player: Cerrosafe Result: Destroyed by G-34 Mercenary with Small Laser Performance ------------- Evolutions (1) 500 Regions Visited (3) 600 Robots Destroyed (58) 290 Value Destroyed (1581) 1581 Prototype IDs (7) 140 Alien Tech Used (0) 0 Bonus (76) 76 TOTAL SCORE: 3187 Bonus ------- High Alert Combat Kills 76 Cogmind --------- Core Integrity 0/400 Matter 279/300 Energy 257/265 System Corruption 3% Temperature Cool (10) Movement Walking (120) Location -9/Storage Parts ------- > --- POWER (1) -------- Improved Ion Engine > --- PROPULSION (4) --- Aluminum Leg Aluminum Leg Aluminum Leg Aluminum Leg > --- UTILITY (2) ------ Medium Storage Unit Sensor Array > --- WEAPON (2) ------- Improved Medium Laser Light Assault Rifle > --- INVENTORY (10) --- Improved Ion Engine High-capacity Matter Pod (116) Drone Bay (2/2) Drone Bay (2/2) Drone Bay (2/2) Drone Bay (2/2) Improved Medium Laser Particle Cannon Heavy Assault Rifle Light Cannon Peak State ------------ > --- POWER ------------ Heavy Ion Engine > --- PROPULSION ------- Aluminum Leg Aluminum Leg Aluminum Leg Improved Aluminum Leg > --- UTILITY ---------- Medium Storage Unit Drone Bay > --- WEAPON ----------- Heavy Assault Rifle Improved Assault Rifle > --- INVENTORY -------- Improved Ion Engine High-capacity Matter Pod Drone Bay Drone Bay Drone Bay Drone Bay Improved Medium Laser Improved Medium Laser Particle Cannon Light Cannon [Rating: 22] Favorites ----------- Power Heavy Ion Engine Engine Heavy Ion Engine Propulsion Aluminum Leg Leg Aluminum Leg Utility Small Battery Device Drone Bay Storage Small Battery Weapon Light Cannon Energy Gun EM Pulse Gun Energy Cannon Light EM Pulse Cannon Ballistic Gun Heavy Assault Rifle Ballistic Cannon Light Cannon Build | -11 -10 -9 -9 ------- Run | Yrd Mat Mat Sto Slots Evolved 2 | . . 2 . Power . | . . . . Propulsion 2 | . . 2 . Utility . | . . . . Weapon . | . . . . Parts Attached 44 | 7 3 14 20 Power 4 | 1 . 2 1 Engine 4 | 1 . 2 1 Core . | . . . . Reactor . | . . . . Propulsion 21 | 2 . 9 10 Treads . | . . . . Leg 21 | 2 . 9 10 Wheel . | . . . . Hover . | . . . . Flight . | . . . . Utility 5 | 1 1 1 2 Device 2 | . . . 2 Storage 3 | 1 1 1 . Processor . | . . . . Hackware . | . . . . Protection . | . . . . Artifact . | . . . . Weapon 14 | 3 2 2 7 Energy Gun 6 | 3 . . 3 Energy Cannon 2 | . 2 . . Ballistic Gun 4 | . . . 4 Ballistic Cannon 2 | . . 2 . Launcher . | . . . . Special Weapon . | . . . . Impact Weapon . | . . . . Slashing Weapon . | . . . . Piercing Weapon . | . . . . Special Melee Weapon . | . . . . Unidentified Prototypes 3 | . . . 3 Parts Lost 11 | . . 2 9 Power 1 | . . . 1 Propulsion 5 | . . . 5 Utility 1 | . . . 1 Weapon 4 | . . 2 2 Highest Loss Streak 6 | . . 2 6 To Critical Strikes . | . . . . Average Slot Usage (%) 95 | . 99 98 92 Engine 11 | . 14 11 10 Leg 38 | . 28 42 39 Device 1 | . . . 2 Storage 20 | . 27 22 17 Energy Gun 3 | . 15 . 2 Energy Cannon 2 | . 12 1 . Ballistic Gun 7 | . . . 14 Ballistic Cannon 8 | . . 20 5 Naked Turns . | . . . . Heaviest Build 30 | 14 19 25 30 Greatest Support 46 | 20 20 46 46 Greatest Overweight (x) 7 | . . . 7 Average Overweight (x) . | . . . . Largest Inventory Capacity 10 | 8 8 10 10 Average Capacity 9 | 6 8 8 10 Most Carried 10 | 5 7 10 10 Average Carried 8 | 2 4 7 9 Final Capacity 10 | 8 8 10 10 Final Carried 10 | 1 7 10 10 Class Distribution -------------------- 56% | Mutant 43% | Scavenger-Mutant Dominant Class ---------------- Mutant | -10/Materials Mutant | -9/Materials Scavenger-Mutant | -9/Storage Resources | -11 -10 -9 -9 ----------- Run | Yrd Mat Mat Sto Matter Collected 1530 | 270 30 391 839 Remotely . | . . . . Salvage Created 1715 | . 250 624 841 Parts 125 | . 22 48 55 Haulers Intercepted 1 | . . . 1 Recyclers Shooed . | . . . . Parts Field Recycled . | . . . . Retrieved Matter . | . . . . Parts Self-Destructed . | . . . . Prevented . | . . . . Kills | -11 -10 -9 -9 ------- Run | Yrd Mat Mat Sto Combat Hostiles Destroyed 48 | . 8 21 19 Guns 17 | . 2 . 15 Cannons 26 | . 3 19 4 AOE 5 | . 3 2 . Classes Destroyed 9 | . 4 3 2 Worker 1 | . . . 1 Hauler 1 | . . . 1 Operator 1 | . 1 . . Watcher 7 | . 3 2 2 Swarmer 16 | . 6 7 3 Grunt 19 | . 2 8 9 Brawler 1 | . . 1 . Duelist 1 | . . 1 . Sentry 11 | . . 4 7 Best Kill Streak 9 | . 5 7 9 Combat Bots Only 7 | . 3 7 5 Max Kills in Single Turn 2 | . 2 2 1 Gunslinging . | . . . . Exploded 2 | . 2 2 . Melee . | . . . . Uniques/NPCs Destroyed . | . . . . Combat | -11 -10 -9 -9 -------- Run | Yrd Mat Mat Sto Hostile Shots Fired 291 | . 36 106 149 Missed 87 | . 13 32 42 Damage Taken 2291 | . 228 872 1191 Core 443 | . 33 161 249 Absorbed by Shields . | . . . . Regen/Repaired (Parts) 55 | . . 55 . Core Remaining (%) 93 | 100 86 . . Volleys Fired 153 | . 15 51 87 Largest 2 | . 2 2 2 Hottest 112 | . 112 112 112 Shots Fired 294 | . 30 101 163 Gun 138 | . 14 . 124 Cannon 156 | . 16 101 39 Launcher . | . . . . Special . | . . . . Kinetic 232 | . . 86 146 Thermal 17 | . . . 17 Explosive . | . . . . Electromagnetic 45 | . 30 15 . Robot Hit Streak 15 | . 9 10 15 Robot Miss Streak 6 | . 3 6 6 Penetration Max . | . . . . Secondary Targets 3 | . . . 3 Max Gunslinging Chain 1 | . . . 1 Shots Hit Robots 157 | . 18 55 84 Core Hits 72 | . 12 28 32 Critical Kills . | . . . . Critical Parts Destroyed . | . . . . Critical Strikes 4 | . 1 2 1 Burn 1 | . . . 1 Blast 2 | . . 2 . Corrupt 1 | . 1 . . Melee Attacks . | . . . . Impact . | . . . . Slashing . | . . . . Piercing . | . . . . Sneak Attacks . | . . . . Combat Hostiles . | . . . . Follow-up Attacks . | . . . . Damage Inflicted 3239 | . 652 1159 1428 Guns 1194 | . 94 . 1100 Cannons 1605 | . 242 1050 313 Explosions 425 | . 316 109 . Melee . | . . . . Ramming 15 | . . . 15 Kinetic 2120 | . . 879 1241 Thermal 597 | . 316 109 172 Explosive . | . . . . Electromagnetic 507 | . 336 171 . Impact . | . . . . Slashing . | . . . . Piercing . | . . . . Highest Corruption 3 | . . . 3 Average Corruption 2 | . . . 2 Corruption Purged . | . . . . Corruption Blocked . | . . . . Effects 23 | . . . 23 Message Errors 1 | . . . 1 Matter Fused 5 | . . . 5 Heat Flow Errors 7 | . . . 7 Energy Discharges 2 | . . . 2 Parts Fused 1 | . . . 1 Data Loss (minor) 4 | . . . 4 Data Loss (major) 1 | . . . 1 Misfires 2 | . . . 2 Overload Shots . | . . . . Overflow Damage 87 | . 79 7 1 Projectiles 8 | . . 7 1 Explosions 79 | . 79 . . Melee . | . . . . Knockbacks 12 | . . 9 3 Impact 1 | . . . 1 Kinetic 10 | . . 8 2 Secondary 1 | . . 1 . Self-Inflicted Damage . | . . . . Shots . | . . . . Rammed . | . . . . Targets Rammed 1 | . . . 1 Kicked 1 | . . . 1 Crushed . | . . . . Highest Temperature 399 | . 237 218 399 Average Temperature 72 | . 66 52 96 Received Heat Transfer 792 | . 33 315 444 Siege Activations . | . . . . Robots Corrupted . | . . . . Combat Hostiles . | . . . . Parts Fried 3 | . 3 . . Impact Corruptions . | . . . . Robots Melted . | . . . . Combat Hostiles . | . . . . Parts Melted 1 | . . . 1 Heat Transferred 894 | . 350 100 444 Parts Sabotaged . | . . . . Parts Stolen . | . . . . Parts Stripped . | . . . . Power Chain Reactions 3 | . 2 1 . Alert | -11 -10 -9 -9 ------- Run | Yrd Mat Mat Sto Peak Influence 525 | . 312 525 474 Initial 221 | . . 131 221 Average 296 | . 145 372 315 Maximum Alert Level 2 | . 1 2 2 Low Security (%) 18 | 100 61 6 8 Level 1 53 | . 38 42 65 Level 2 28 | . . 51 26 Level 3 . | . . . . Level 4 . | . . . . Level 5 . | . . . . High Security . | . . . . Max Security . | . . . . Squads Dispatched 5 | . . 1 4 Investigation 1 | . . . 1 Extermination . | . . . . Reinforcement 4 | . . 1 3 Assault . | . . . . Garrison . | . . . . Intercept . | . . . . Searches Triggered . | . . . . Construction Impeded . | . . . . Haulers Reinforced . | . . . . Active Scanning Responses . | . . . . Cargo Convoy Interrupts . | . . . . Stealth | -11 -10 -9 -9 --------- Run | Yrd Mat Mat Sto Distress Signals 5 | . 1 2 2 Communications Jammed . | . . . . Distress Signals . | . . . . Times Spotted 73 | . 14 27 32 Peak Tracking Total 6 | . 4 6 5 Tactical Retreats 3 | . 1 . 2 Traps | -11 -10 -9 -9 ------- Run | Yrd Mat Mat Sto Traps Triggered 3 | . 1 . 2 Indirectly . | . . . . Trap Hack Attempts . | . . . . Triggered . | . . . . Disarmed . | . . . . Reprogrammed . | . . . . Reused . | . . . . Traps Extracted . | . . . . Installed . | . . . . Triggered . | . . . . Machines | -11 -10 -9 -9 ---------- Run | Yrd Mat Mat Sto Machines Disabled 4 | . 2 . 2 Max in Single Turn 2 | . 2 . 1 Machines Repaired . | . . . . Machines Dismantled . | . . . . Machines Sabotaged . | . . . . Overloaded Fab Kills . | . . . . Hacking | -11 -10 -9 -9 --------- Run | Yrd Mat Mat Sto Machines Accessed 14 | . 4 5 5 Terminals 10 | . 3 3 4 Fabricators . | . . . . Repair Stations 1 | . . 1 . Recycling Units 3 | . 1 1 1 Scanalyzers . | . . . . Garrison Access . | . . . . Total Hacks 39 | . 16 14 9 Successful 22 | . 7 9 6 Failed 17 | . 9 5 3 Catastrophic 3 | . . 1 2 Database Lockouts . | . . . . Manual 8 | . 2 1 5 Terminals 31 | . 14 9 8 Fabricators . | . . . . Repair Stations 2 | . . 2 . Recycling Units 6 | . 2 3 1 Scanalyzers . | . . . . Garrison Access . | . . . . Terminal Hacks 15 | . 6 4 5 Record 1 | . . . 1 Prototype ID Bank 2 | . 1 1 . Open Door 1 | . . . 1 Alert Level 2 | . 1 . 1 Locate Traps 2 | . 1 . 1 Dispatch Records 1 | . 1 . . Maintenance Status 2 | . 1 1 . Transport Status 1 | . 1 . . Hauler Manifests 2 | . . 2 . Zone Layout 1 | . . . 1 Fabricator Hacks . | . . . . Repair Station Hacks 2 | . . 2 . Scan Component 1 | . . 1 . Repair 1 | . . 1 . Recycling Unit Hacks 4 | . 1 2 1 Report Inventory 3 | . 1 1 1 Retrieve Components 1 | . . 1 . Scanalyzer . | . . . . Garrison Access Hacks . | . . . . Unauthorized Hacks 1 | . . 1 . Terminals 1 | . . 1 . Assimilate 1 | . . 1 . Fabricators . | . . . . Repair Stations . | . . . . Recycling Units . | . . . . Scanalyzers . | . . . . Garrison Access . | . . . . Data Cores Recovered 1 | . 1 . . Used . | . . . . Hacking Detections 7 | . 3 2 2 Full Trace Events 1 | . . . 1 Feedback Events . | . . . . Feedback Blocked . | . . . . Robot Schematics Acquired . | . . . . Robots Built . | . . . . Authchips . | . . . . Time . | . . . . Total Robot Build Rating . | . . . . Part Schematics Acquired . | . . . . Parts Built . | . . . . Authchips . | . . . . Time . | . . . . Total Part Build Rating . | . . . . Parts Repaired 1 | . . 1 . Time 26 | . . 26 . Parts Recycled . | . . . . Recycled Matter . | . . . . Retrieved Matter . | . . . . Retrieved Components 7 | . . 7 . Parts Scanalyzed . | . . . . Part Schematics Acquired . | . . . . Parts Damaged . | . . . . Bothacking | -11 -10 -9 -9 ------------ Run | Yrd Mat Mat Sto Used RIF Installer . | . . . . Robots Hacked . | . . . . Non-combat . | . . . . Combat . | . . . . Robot Hacks Applied . | . . . . Relay Couplers Released . | . . . . Fabnet Peak Effective % . | . . . . Robots Rewired . | . . . . Allies Hacked . | . . . . Hacks Repelled . | . . . . Allies | -11 -10 -9 -9 -------- Run | Yrd Mat Mat Sto Total Allies . | . . . . Largest Group . | . . . . Highest-Rated Group . | . . . . Highest-Rated Ally . | . . . . Total Orders 1 | . . . 1 RETURN 1 | . . . 1 Ally Attacks . | . . . . Total Damage . | . . . . Kills . | . . . . Allies Corrupted . | . . . . Allies Melted . | . . . . Intel | -11 -10 -9 -9 ------- Run | Yrd Mat Mat Sto Robot Analysis Total . | . . . . Derelict Logs Recovered . | . . . . Drone Launches 6 | . . . 6 Drone Recoveries 4 | . . . 4 Exploration | -11 -10 -9 -9 ------------- Run | Yrd Mat Mat Sto Turns Passed 2184 | 44 365 621 1154 Spaces Moved 1225 | 37 256 326 606 Core 24 | 19 . . 5 Treads . | . . . . Legs 1201 | 18 256 326 601 Wheels . | . . . . Hover . | . . . . Flight . | . . . . Fastest Speed 50 | 50 120 120 120 Average Speed 121 | 84 120 120 125 Slowest Speed 400 | 120 120 120 400 Overloaded Moves . | . . . . Propulsion Burnouts . | . . . . Robots Hopped . | . . . . Cave-ins Triggered . | . . . . Exploration Rate (%) 41 | 3 57 33 73 Regions Visited 3 Branch Regions 1 Pre-discovered Areas . | . . . . Known Exits Taken . | . . . . Unknown Exits Taken 3 | 1 1 1 . Scrap Searched . | . . . . Spaces Dug . | . . . . Terrain Destroyed 35 | . 32 3 . Melee . | . . . . Projectile . | . . . . AOE 35 | . 32 3 . Terrain Rammed . | . . . . Walls Destroyed . | . . . . Machines Disabled . | . . . . Actions | -11 -10 -9 -9 --------- Run | Yrd Mat Mat Sto Total 1628 | 48 283 455 842 Wait 153 | . 3 44 106 Move 1222 | 36 255 325 606 Hop . | . . . . Pick Up 35 | 5 7 13 10 Fast Attach 8 | 2 . . 6 Attach 13 | 4 1 4 4 Detach . | . . . . Swap 24 | 1 2 10 11 Drop 18 | . . 8 10 Fire 153 | . 15 51 87 Melee . | . . . . Ram . | . . . . Kick 1 | . . . 1 Crush . | . . . . Escape Stasis . | . . . . Rewire . | . . . . Trap . | . . . . Miscellaneous 1 | . . . 1 Route ------- -11/Scrapyard -10/Materials (discovered 3 exits: *Mat x2 / [*Min]) -9/Materials -9/Storage History --------- Turn | Location | Event 3 | -11/Scrapyard | Discovered new exit (range 15) 45 | -11/Scrapyard | Entered Materials 180 | -10/Materials | Discovered new exit (range 16) 212 | -10/Materials | Discovered new exit (range 12) 306 | -10/Materials | Build established: Mutant 386 | -10/Materials | Discovered new exit (range 10) 410 | -10/Materials | Entered another Materials area 410 | -9/Materials | Evolved 2 slots: Propulsion x2 668 | -9/Materials | Repaired Ion Engine 944 | -9/Materials | Discovered new exit (range 15) 960 | -9/Materials | Destroyed 7 combat bots 1031 | -9/Materials | Entered Storage 1486 | -9/Storage | Build established: Scavenger-Mutant 1521 | -9/Storage | Core integrity fell below 50% 2019 | -9/Storage | Core integrity fell below 20% 2060 | -9/Storage | Lost 6 parts (4n1u1w) 2185 | -9/Storage | Destroyed by G-34 Mercenary with Small Laser Last Messages --------------- G-34 Mercenary suffers critical hit (Burn). Heat Sink melted. G-34 Mercenary destroyed. K-01 Serf collects debris. R-06 Scavenger collects Aluminum Leg. W-16 Scout destroyed. System corrupted: Component data lost. Acquired 22 matter. Acquired Unknown Device. Identified Sensor Array. O-16 Technician sends out distress signal. O-16 Technician: "IFF HANDSHAKE FAILED. SECURING TERMINAL." Critical hit (Burn: +37). O-16 Technician uses terminal to summon reinforcements. ALERT: Hostiles spotted, dispatching reinforcements to Terminal S003. O-16 Technician locks terminal. System corrupted: Matter fused (-9). Map ----- +----------------------------------------------------+ | ## ##????????????? # #?????????????????? | | #????????????????????????????????????????????? | | % #????????????????????????????????????????????? | | #????????????????????????????????????????????? | | %!#????????????????????????????????????????????? | | = ! #?????????????????????#??????????????????????? | | ## ############+##### ??????????????????????? | | ?# ^[*! #?????????????????????? | | ?# **^^% T ???????????????????????? | | ?# * ! #?????????????????????? | | ?###+#+######%######## ??????????????????????? | | ??#=[=! [ ## #???????# #??????????????????????? | | ??#* =""" ##/######### #??????????????????????? | | ??# = *["" # """"" ## #??????????????????????? | | ??#* """ # " """"" ## #??????????????????????? | | ??# [!= # T """"" ## #??????????????????????? | | ??#* """ # " ## #??????????????????????? | | ??# ! """ # ## #??????????????????????? | | ?# ! """ # ## #??????????????????????? | | ?## # ## #???""#????????????????? | | ??########## ## ##?"R"#????????????????? | | ???????##########+#### ##" "##### ?????????? | | ?? ! ??????????? | | ?? !g To ? ??????????? | | ?? ????????????? | | ???####/#########+#### @ ######????????????????? | | ?????????????????????###+###?????????????????????? | | ??????????????????????# T#?????????????????????? | | ??????????????????????#" "##?????????????????????? | | ???????????????????????===???????????????????????? | | ???????????????????????===???????????????????????? | | ??????????????????????#####??????????????????????? | | ?????????????????????????????????????????????????? | | ?????????????????????????????????????????????????? | | ?????????????????????????????????????????????????? | | ?????????????????????????????????????????????????? | | | | | | | | | | | | | | | | | | | | | | | | | | | | | +----------------------------------------------------+ Best States ------------- Heat Dissipation 28 Energy Generation 14 Energy Capacity 380 Matter Stores 300 Matter Capacity 300 Sight Range 16 Robot Scan Range 14 Terrain Scan Density 10 Evasion (%) 55 Item Schematics ----------------- None Robot Schematics ------------------ None Fabricated ------------ Nothing Alien Tech Used ----------------- None Achievements -------------- None Challenges ------------ None Game ------ Seed AerolevEtherialFlamer Manual? 0 Play Time 00:27:44 Cumulative 11.3 hours Start 2024.04.06 @ 20:48:44 End 2024.04.06 @ 21:15:26 Sessions 1 Manual Loads 0 Difficulty Rogue Special Mode None Game No. 23 Rogue 23 Adventurer 0 Explorer 0 Win Type - Total 0 Types 0/0/0/0/0/0/0/0/0 Lore% 14 Gallery% 17 Achievement% 15 Wizard Run 0 Options --------- Layout 1 ASCII 0 Keyboard 0 Movement Mouse Keybinds 0 Fullscreen 1 Font 32/SmallcapsGlow Map View 50x35 Zoom Use 0% Tactical HUD 0 Map Filters NONE Filters NONE Steam 1 RUN: 24d274a1-7bf9-4db6-ada5-7d41e6cb14fd